[Event "*** Titled Tuesday Blitz"]
[Site "Chess.com"]
[Date "2020.04.14"]
[Round "5"]
[White "Enriquack"]
[Black "Nikolaj_6"]
[Result "1-0"]
[WhiteElo "2302"]
[BlackElo "2583"]
[TimeControl "180+1"]
[EndTime "10:52:16 PDT"]
[Termination "Enriquack won by resignation"]

1. e4 {[%clk 0:02:59.6]} 1... c5 {[%clk 0:03:00.1]} 2. Nf3 {[%clk 0:02:59.4]}
2... e6 {[%clk 0:03:00]} 3. d4 {[%clk 0:02:59.3]} 3... cxd4 {[%clk 0:03:00.1]}
4. Nxd4 {[%clk 0:02:59.5]} 4... Nc6 {[%clk 0:03:00]} 5. Nc3 {[%clk 0:02:58.4]}
5... a6 {[%clk 0:02:59.8]} 6. Nxc6 {[%clk 0:02:56.8]} 6... bxc6 {[%clk
0:02:59.5]} 7. Bd3 {[%clk 0:02:56.3]} 7... Nf6 {[%clk 0:02:57.6]} 8. O-O {[%clk
0:02:50.6]} 8... d5 {[%clk 0:02:57.4]} 9. Qf3 {[%clk 0:02:48.5]} 9... Be7 {[%clk
0:02:56]} 10. Qg3 {[%clk 0:02:44.8]} 10... O-O {[%clk 0:02:52.2]} 11. Bh6 {[%clk
0:02:37.3]} 11... Ne8 {[%clk 0:02:51.1]} 12. Bf4 {[%clk 0:02:13.2]} 12... Bh4
{[%clk 0:02:43]} 13. Qf3 {[%clk 0:02:04.3]} 13... Bf6 {[%clk 0:02:36.5]} 14. e5
{[%clk 0:01:57.9]} 14... Bg5 {[%clk 0:02:28.8]} 15. Na4 {[%clk 0:01:52.5]} 15...
Bxf4 {[%clk 0:02:26.8]} 16. Qxf4 {[%clk 0:01:52.2]} 16... Rb8 {[%clk 0:02:21.5]}
17. c4 {[%clk 0:01:44.5]} 17... Qe7 {[%clk 0:02:18]} 18. b3 {[%clk 0:01:40.8]}
18... Nc7 {[%clk 0:02:12.2]} 19. Rac1 {[%clk 0:01:37]} 19... f6 {[%clk
0:02:11.7]} 20. exf6 {[%clk 0:01:25.6]} 20... gxf6 {[%clk 0:02:06.8]} 21. Rfe1
{[%clk 0:01:21.1]} 21... e5 {[%clk 0:02:05.8]} 22. Qg3+ {[%clk 0:01:20.4]} 22...
Kh8 {[%clk 0:02:05]} 23. Qh4 {[%clk 0:01:11.2]} 23... Rf7 {[%clk 0:01:52.6]} 24.
cxd5 {[%clk 0:01:03.5]} 24... cxd5 {[%clk 0:01:47.1]} 25. Nc5 {[%clk 0:01:02.5]}
25... Ne6 {[%clk 0:01:41.7]} 26. Nxe6 {[%clk 0:00:47.4]} 26... Bxe6 {[%clk
0:01:41.2]} 27. Rc6 {[%clk 0:00:47.5]} 27... a5 {[%clk 0:01:35.9]} 28. Rec1
{[%clk 0:00:46.4]} 28... Rbf8 {[%clk 0:01:23]} 29. Rc7 {[%clk 0:00:44.7]} 29...
Qxc7 {[%clk 0:01:15]} 30. Rxc7 {[%clk 0:00:44.5]} 30... Rxc7 {[%clk 0:01:15.6]}
31. h3 {[%clk 0:00:42.1]} 31... Rg7 {[%clk 0:01:14.2]} 32. Kh2 {[%clk
0:00:40.2]} 32... e4 {[%clk 0:01:10.3]} 33. Bf1 {[%clk 0:00:38.4]} 33... f5
{[%clk 0:01:10.5]} 34. Qf4 {[%clk 0:00:37.6]} 34... Re7 {[%clk 0:01:04.3]} 35.
Qe5+ {[%clk 0:00:37.3]} 35... Kg8 {[%clk 0:01:04.2]} 36. Qd4 {[%clk 0:00:37.6]}
36... f4 {[%clk 0:01:01]} 37. a3 {[%clk 0:00:35.8]} 37... Bf7 {[%clk 0:00:56.5]}
38. b4 {[%clk 0:00:33.9]} 38... axb4 {[%clk 0:00:56.6]} 39. axb4 {[%clk
0:00:34.1]} 39... Rfe8 {[%clk 0:00:55]} 40. b5 {[%clk 0:00:32.7]} 40... e3
{[%clk 0:00:55.2]} 41. fxe3 {[%clk 0:00:32.6]} 41... fxe3 {[%clk 0:00:56.1]} 42.
Be2 {[%clk 0:00:33]} 42... Re4 {[%clk 0:00:52.5]} 43. Qf6 {[%clk 0:00:29.4]}
43... d4 {[%clk 0:00:50.5]} 44. b6 {[%clk 0:00:28.2]} 44... d3 {[%clk
0:00:47.2]} 45. Bxd3 {[%clk 0:00:27.5]} 45... e2 {[%clk 0:00:46.7]} 46. Qg5+
{[%clk 0:00:24.1]} 46... Bg6 {[%clk 0:00:39.8]} 47. Qd5+ {[%clk 0:00:20.7]}
47... R4e6 {[%clk 0:00:35.8]} 48. Bxe2 {[%clk 0:00:19.9]} 48... Bf7 {[%clk
0:00:36.1]} 49. Qg5+ {[%clk 0:00:19.4]} 49... Rg6 {[%clk 0:00:36]} 50. Qd2
{[%clk 0:00:18.3]} 50... Rxb6 {[%clk 0:00:32]} 51. Bf3 {[%clk 0:00:18.4]} 51...
Rg6 {[%clk 0:00:31.6]} 52. Qd4 {[%clk 0:00:18.1]} 52... h6 {[%clk 0:00:28.3]}
53. h4 {[%clk 0:00:17.6]} 53... Ree6 {[%clk 0:00:26.4]} 54. Qd8+ {[%clk
0:00:16.9]} 54... Re8 {[%clk 0:00:25.3]} 55. Qd4 {[%clk 0:00:16.6]} 55... Ree6
{[%clk 0:00:24.4]} 56. Qf4 {[%clk 0:00:16.6]} 56... Rgf6 {[%clk 0:00:24.1]} 57.
Qb8+ {[%clk 0:00:16.6]} 57... Re8 {[%clk 0:00:23.4]} 58. Qg3+ {[%clk 0:00:15.9]}
58... Kf8 {[%clk 0:00:23.4]} 59. h5 {[%clk 0:00:15.9]} 59... Ree6 {[%clk
0:00:22.5]} 60. Qc7 {[%clk 0:00:15.9]} 60... Rf5 {[%clk 0:00:20.5]} 61. Qd8+
{[%clk 0:00:15]} 61... Kg7 {[%clk 0:00:20]} 62. Qd2 {[%clk 0:00:15]} 62... Ree5
{[%clk 0:00:19.2]} 63. Qd4 {[%clk 0:00:13.4]} 63... Rg5 {[%clk 0:00:15]} 64. g4
{[%clk 0:00:13.1]} 64... Be6 {[%clk 0:00:14.6]} 65. Kg3 {[%clk 0:00:13.1]} 65...
Kf6 {[%clk 0:00:13.4]} 66. Qd8+ {[%clk 0:00:13]} 66... Kf7 {[%clk 0:00:13.4]}
67. Qc7+ {[%clk 0:00:12]} 67... Kf6 {[%clk 0:00:13.7]} 68. Qd8+ {[%clk 0:00:12]}
68... Kf7 {[%clk 0:00:13.8]} 69. Qh8 {[%clk 0:00:12]} 69... Bxg4 {[%clk
0:00:13]} 70. Bxg4 {[%clk 0:00:10.2]} 70... Re4 {[%clk 0:00:13]} 71. Qh7+ {[%clk
0:00:09.5]} 71... Kf6 {[%clk 0:00:13.5]} 72. Qxe4 {[%clk 0:00:10]} 72... Re5
{[%clk 0:00:13.9]} 73. Qf4+ {[%clk 0:00:10.1]} 1-0

[Event "*** Titled Tuesday Blitz"]
[Site "Chess.com"]
[Date "2020.04.14"]
[Round "5"]
[White "Perimir"]
[Black "DenishevM"]
[Result "1-0"]
[WhiteElo "2446"]
[BlackElo "2603"]
[TimeControl "180+1"]
[EndTime "10:52:18 PDT"]
[Termination "Perimir won by resignation"]

1. e4 {[%clk 0:03:00.8]} 1... Nf6 {[%clk 0:02:52.5]} 2. Nc3 {[%clk 0:03:00.8]}
2... d5 {[%clk 0:02:52.2]} 3. e5 {[%clk 0:03:01.3]} 3... Nfd7 {[%clk 0:02:52]}
4. f4 {[%clk 0:03:01.3]} 4... c5 {[%clk 0:02:51.1]} 5. Nf3 {[%clk 0:03:00.9]}
5... Nc6 {[%clk 0:02:50.8]} 6. Bb5 {[%clk 0:03:01.4]} 6... Ndb8 {[%clk
0:02:49.9]} 7. O-O {[%clk 0:02:53.8]} 7... e6 {[%clk 0:02:44.8]} 8. a4 {[%clk
0:02:49.2]} 8... Be7 {[%clk 0:02:40.7]} 9. d3 {[%clk 0:02:44.6]} 9... a6 {[%clk
0:02:39.5]} 10. Bxc6+ {[%clk 0:02:43.4]} 10... Nxc6 {[%clk 0:02:40.4]} 11. Bd2
{[%clk 0:02:41.2]} 11... O-O {[%clk 0:02:39.8]} 12. Qe2 {[%clk 0:02:34.9]} 12...
f5 {[%clk 0:02:34]} 13. exf6 {[%clk 0:02:31.5]} 13... Bxf6 {[%clk 0:02:33.9]}
14. Kh1 {[%clk 0:02:29.2]} 14... Qd6 {[%clk 0:02:19.5]} 15. Rae1 {[%clk
0:02:25.5]} 15... Bd7 {[%clk 0:02:18.9]} 16. Nd1 {[%clk 0:02:09.7]} 16... Rae8
{[%clk 0:02:08]} 17. b3 {[%clk 0:02:02.2]} 17... Re7 {[%clk 0:02:02.7]} 18. Bc3
{[%clk 0:01:28.3]} 18... Bxc3 {[%clk 0:01:54.8]} 19. Nxc3 {[%clk 0:01:29.2]}
19... Rxf4 {[%clk 0:01:53.1]} 20. Ng5 {[%clk 0:01:17.7]} 20... Rxf1+ {[%clk
0:01:44.4]} 21. Rxf1 {[%clk 0:01:18.6]} 21... h6 {[%clk 0:01:39.4]} 22. Nf3
{[%clk 0:01:11.5]} 22... Rf7 {[%clk 0:01:28.6]} 23. Re1 {[%clk 0:01:09.6]} 23...
e5 {[%clk 0:01:12.8]} 24. h3 {[%clk 0:01:09.5]} 24... Re7 {[%clk 0:01:05.2]} 25.
Qf2 {[%clk 0:01:02]} 25... Nd4 {[%clk 0:00:46.3]} 26. Nxd4 {[%clk 0:00:49.9]}
26... cxd4 {[%clk 0:00:47.2]} 27. Ne2 {[%clk 0:00:49.5]} 27... Qf6 {[%clk
0:00:39.8]} 28. Qg3 {[%clk 0:00:22.5]} 28... e4 {[%clk 0:00:29.2]} 29. Nf4
{[%clk 0:00:22.6]} 29... Bc6 {[%clk 0:00:26.5]} 30. Kh2 {[%clk 0:00:21.1]} 30...
Rf7 {[%clk 0:00:26.1]} 31. Nh5 {[%clk 0:00:19.1]} 31... Qg5 {[%clk 0:00:22.1]}
32. Qxg5 {[%clk 0:00:18]} 32... hxg5 {[%clk 0:00:23]} 33. Ng3 {[%clk 0:00:18.8]}
33... e3 {[%clk 0:00:21.1]} 34. Kg1 {[%clk 0:00:16.6]} 34... b5 {[%clk
0:00:13.2]} 35. Rf1 {[%clk 0:00:17]} 35... Rxf1+ {[%clk 0:00:12]} 36. Kxf1
{[%clk 0:00:17.1]} 36... bxa4 {[%clk 0:00:12.9]} 37. bxa4 {[%clk 0:00:17.9]}
37... Bxa4 {[%clk 0:00:13.8]} 38. Nf5 {[%clk 0:00:17.9]} 38... Bxc2 {[%clk
0:00:12.8]} 39. Ke2 {[%clk 0:00:18.3]} 39... a5 {[%clk 0:00:11.6]} 40. Nxd4
{[%clk 0:00:18.8]} 40... Bb1 {[%clk 0:00:07.1]} 41. Kxe3 {[%clk 0:00:15.8]}
41... a4 {[%clk 0:00:07.6]} 42. Nb5 {[%clk 0:00:15.6]} 42... Ba2 {[%clk
0:00:06]} 43. Kd4 {[%clk 0:00:14]} 43... Kf7 {[%clk 0:00:04.7]} 44. Kc3 {[%clk
0:00:12]} 44... g4 {[%clk 0:00:03]} 45. hxg4 {[%clk 0:00:10.5]} 45... Bb3 {[%clk
0:00:03.4]} 46. Nd4 {[%clk 0:00:08.2]} 46... Kf6 {[%clk 0:00:03.1]} 47. Nxb3
{[%clk 0:00:08.2]} 47... axb3 {[%clk 0:00:04]} 48. Kxb3 {[%clk 0:00:09.1]} 48...
Kg5 {[%clk 0:00:03]} 49. Kb4 {[%clk 0:00:09.3]} 49... Kf4 {[%clk 0:00:01.4]} 50.
Kc5 {[%clk 0:00:10]} 50... Ke5 {[%clk 0:00:01.9]} 51. d4+ {[%clk 0:00:08.3]}
51... Ke4 {[%clk 0:00:02]} 52. g5 {[%clk 0:00:08.5]} 52... g6 {[%clk 0:00:02.5]}
53. g3 {[%clk 0:00:08.5]} 53... Kf3 {[%clk 0:00:02.4]} 54. Kxd5 {[%clk
0:00:09.4]} 54... Kxg3 {[%clk 0:00:03.2]} 55. Ke5 {[%clk 0:00:09.8]} 55... Kg4
{[%clk 0:00:04.1]} 56. Kf6 {[%clk 0:00:10.1]} 56... Kf4 {[%clk 0:00:04.1]} 57.
d5 {[%clk 0:00:11]} 1-0

[Event "*** Titled Tuesday Blitz"]
[Site "Chess.com"]
[Date "2020.04.14"]
[Round "5"]
[White "awesomevishesh"]
[Black "Mischuk_D"]
[Result "1/2-1/2"]
[WhiteElo "2540"]
[BlackElo "2703"]
[TimeControl "180+1"]
[EndTime "10:52:19 PDT"]
[Termination "Game drawn - insufficient material"]

1. d4 {[%clk 0:03:00.9]} 1... Nf6 {[%clk 0:02:59.6]} 2. c4 {[%clk 0:03:00.5]}
2... g6 {[%clk 0:02:59.8]} 3. Nc3 {[%clk 0:03:00.3]} 3... d5 {[%clk 0:03:00]} 4.
cxd5 {[%clk 0:03:00]} 4... Nxd5 {[%clk 0:03:00.9]} 5. e4 {[%clk 0:03:00]} 5...
Nxc3 {[%clk 0:03:01.1]} 6. bxc3 {[%clk 0:03:00.9]} 6... Bg7 {[%clk 0:03:01.8]}
7. Bc4 {[%clk 0:03:00.8]} 7... Nc6 {[%clk 0:02:59.4]} 8. Ne2 {[%clk 0:02:55.4]}
8... O-O {[%clk 0:02:58.8]} 9. O-O {[%clk 0:02:54.6]} 9... e5 {[%clk 0:02:58.9]}
10. d5 {[%clk 0:02:26.3]} 10... Na5 {[%clk 0:02:58.4]} 11. Bd3 {[%clk
0:02:24.4]} 11... b6 {[%clk 0:02:57.9]} 12. Be3 {[%clk 0:02:14.6]} 12... Nb7
{[%clk 0:02:46.9]} 13. Qd2 {[%clk 0:02:02.4]} 13... Qe7 {[%clk 0:02:45]} 14. f4
{[%clk 0:01:36]} 14... exf4 {[%clk 0:02:34.7]} 15. Bxf4 {[%clk 0:01:06.6]} 15...
Nc5 {[%clk 0:02:34.8]} 16. Ng3 {[%clk 0:00:47.6]} 16... Bb7 {[%clk 0:02:16.7]}
17. Rae1 {[%clk 0:00:46.5]} 17... Rad8 {[%clk 0:02:14.2]} 18. Bg5 {[%clk
0:00:37.7]} 18... f6 {[%clk 0:02:13.9]} 19. Bf4 {[%clk 0:00:30.9]} 19... c6
{[%clk 0:02:00]} 20. d6 {[%clk 0:00:30.8]} 20... Qe6 {[%clk 0:01:51.8]} 21. h4
{[%clk 0:00:24.4]} 21... h5 {[%clk 0:01:45.7]} 22. Rf2 {[%clk 0:00:12]} 22...
Kh7 {[%clk 0:01:33.8]} 23. Qd1 {[%clk 0:00:09.4]} 23... Qg4 {[%clk 0:01:27.9]}
24. Qxg4 {[%clk 0:00:07.1]} 24... hxg4 {[%clk 0:01:27.8]} 25. Bb1 {[%clk
0:00:07.3]} 25... Rfe8 {[%clk 0:01:24.4]} 26. Bc2 {[%clk 0:00:06.9]} 26... Ne6
{[%clk 0:01:24.4]} 27. Bd1 {[%clk 0:00:05.5]} 27... Nxf4 {[%clk 0:01:24.3]} 28.
Rxf4 {[%clk 0:00:05.6]} 28... Bh6 {[%clk 0:01:21.2]} 29. Rf2 {[%clk 0:00:05.2]}
29... Rxd6 {[%clk 0:01:20.6]} 30. Bxg4 {[%clk 0:00:05.6]} 30... Kg7 {[%clk
0:01:15.6]} 31. h5 {[%clk 0:00:05.9]} 31... Rd3 {[%clk 0:01:07.6]} 32. Rf3
{[%clk 0:00:05.4]} 32... Rxf3 {[%clk 0:01:06.5]} 33. gxf3 {[%clk 0:00:05.9]}
33... Bf4 {[%clk 0:01:06.5]} 34. Kg2 {[%clk 0:00:05.9]} 34... Rd8 {[%clk
0:01:02.2]} 35. hxg6 {[%clk 0:00:06]} 35... Bxg3 {[%clk 0:01:02.6]} 36. Kxg3
{[%clk 0:00:06.2]} 36... Kxg6 {[%clk 0:01:03.5]} 37. Bf5+ {[%clk 0:00:06.7]}
37... Kg7 {[%clk 0:01:00.5]} 38. Rh1 {[%clk 0:00:06.9]} 38... Rh8 {[%clk
0:01:00.7]} 39. Rd1 {[%clk 0:00:06]} 39... Rf8 {[%clk 0:00:59.6]} 40. Rd7+
{[%clk 0:00:05.8]} 40... Rf7 {[%clk 0:01:00]} 41. Rd8 {[%clk 0:00:06.2]} 41...
c5 {[%clk 0:00:59]} 42. Kf4 {[%clk 0:00:06.4]} 42... Re7 {[%clk 0:00:58.3]} 43.
Rb8 {[%clk 0:00:06.2]} 43... Ba6 {[%clk 0:00:58.1]} 44. Ke3 {[%clk 0:00:05.5]}
44... Bc4 {[%clk 0:00:58.2]} 45. a3 {[%clk 0:00:05.9]} 45... Bf7 {[%clk
0:00:57.2]} 46. Kf4 {[%clk 0:00:05.7]} 46... c4 {[%clk 0:00:55.5]} 47. Ke3
{[%clk 0:00:05.3]} 47... Bg6 {[%clk 0:00:55.4]} 48. Kf4 {[%clk 0:00:05.1]} 48...
Bxf5 {[%clk 0:00:55.2]} 49. Kxf5 {[%clk 0:00:05.5]} 49... Re5+ {[%clk
0:00:55.6]} 50. Kf4 {[%clk 0:00:05.9]} 50... Ra5 {[%clk 0:00:56.5]} 51. Rc8
{[%clk 0:00:05.8]} 51... Ra4 {[%clk 0:00:55.6]} 52. Rc7+ {[%clk 0:00:05.6]}
52... Kg6 {[%clk 0:00:55.7]} 53. Rc6 {[%clk 0:00:06]} 53... Kf7 {[%clk 0:00:56]}
54. Kf5 {[%clk 0:00:05.2]} 54... Ra5+ {[%clk 0:00:56.2]} 55. Kf4 {[%clk
0:00:05]} 55... Rxa3 {[%clk 0:00:56.3]} 56. Rxc4 {[%clk 0:00:04]} 56... Ke7
{[%clk 0:00:56.7]} 57. Rc7+ {[%clk 0:00:04]} 57... Kd6 {[%clk 0:00:56.7]} 58.
Rc8 {[%clk 0:00:04.4]} 58... Kd7 {[%clk 0:00:56.1]} 59. Rc4 {[%clk 0:00:04.2]}
59... Ra5 {[%clk 0:00:55.8]} 60. Ke3 {[%clk 0:00:03.9]} 60... Kd6 {[%clk
0:00:51.6]} 61. f4 {[%clk 0:00:04.3]} 61... Ra1 {[%clk 0:00:51.2]} 62. Kd4
{[%clk 0:00:04]} 62... Rd1+ {[%clk 0:00:50.7]} 63. Ke3 {[%clk 0:00:04.3]} 63...
b5 {[%clk 0:00:50.6]} 64. Rb4 {[%clk 0:00:04.2]} 64... a6 {[%clk 0:00:50.7]} 65.
Rb2 {[%clk 0:00:04.4]} 65... Kc5 {[%clk 0:00:49.9]} 66. Rh2 {[%clk 0:00:03.7]}
66... Rd6 {[%clk 0:00:46.9]} 67. Rh8 {[%clk 0:00:03.3]} 67... a5 {[%clk
0:00:46.9]} 68. Rc8+ {[%clk 0:00:03.2]} 68... Rc6 {[%clk 0:00:46.9]} 69. Ra8
{[%clk 0:00:03.2]} 69... a4 {[%clk 0:00:47.3]} 70. e5 {[%clk 0:00:03.2]} 70...
fxe5 {[%clk 0:00:47.2]} 71. fxe5 {[%clk 0:00:03.5]} 71... Kc4 {[%clk 0:00:48.1]}
72. Ke4 {[%clk 0:00:03.1]} 72... Kxc3 {[%clk 0:00:47.6]} 73. Kd5 {[%clk
0:00:03.5]} 73... Rc7 {[%clk 0:00:47.6]} 74. e6 {[%clk 0:00:04]} 74... Kb3
{[%clk 0:00:46.9]} 75. Kd6 {[%clk 0:00:04.5]} 75... Rh7 {[%clk 0:00:47]} 76. e7
{[%clk 0:00:04.8]} 76... Rxe7 {[%clk 0:00:46.2]} 77. Kxe7 {[%clk 0:00:05.7]}
77... a3 {[%clk 0:00:46.8]} 78. Kd6 {[%clk 0:00:05.6]} 78... Ka2 {[%clk
0:00:47.2]} 79. Kc5 {[%clk 0:00:05.6]} 79... Kb2 {[%clk 0:00:47.7]} 80. Kxb5
{[%clk 0:00:05.4]} 80... a2 {[%clk 0:00:48.6]} 81. Rxa2+ {[%clk 0:00:05.4]}
81... Kxa2 {[%clk 0:00:49.5]} 1/2-1/2

[Event "*** Titled Tuesday Blitz"]
[Site "Chess.com"]
[Date "2020.04.14"]
[Round "5"]
[White "zivicd"]
[Black "Belgrade"]
[Result "0-1"]
[WhiteElo "2220"]
[BlackElo "2102"]
[TimeControl "180+1"]
[EndTime "10:52:23 PDT"]
[Termination "Belgrade won on time"]

1. e4 {[%clk 0:03:00.9]} 1... e6 {[%clk 0:02:59.7]} 2. d4 {[%clk 0:02:58]} 2...
d5 {[%clk 0:03:00]} 3. Nd2 {[%clk 0:02:56.2]} 3... Ne7 {[%clk 0:02:59.4]} 4.
Ngf3 {[%clk 0:02:52.2]} 4... g6 {[%clk 0:02:59.3]} 5. c3 {[%clk 0:02:51.1]} 5...
Bg7 {[%clk 0:02:59.6]} 6. Bd3 {[%clk 0:02:46.5]} 6... Nd7 {[%clk 0:02:59.7]} 7.
exd5 {[%clk 0:02:41.9]} 7... exd5 {[%clk 0:02:59.4]} 8. O-O {[%clk 0:02:40.7]}
8... O-O {[%clk 0:02:59.4]} 9. Re1 {[%clk 0:02:39.9]} 9... c5 {[%clk 0:02:59.3]}
10. Nf1 {[%clk 0:02:34.7]} 10... Nc6 {[%clk 0:02:59.2]} 11. Be3 {[%clk
0:02:29.5]} 11... cxd4 {[%clk 0:02:54.6]} 12. Nxd4 {[%clk 0:02:27.8]} 12... Nce5
{[%clk 0:02:52.1]} 13. Be2 {[%clk 0:02:20.6]} 13... Nc5 {[%clk 0:02:45.8]} 14.
Ng3 {[%clk 0:02:09.9]} 14... b6 {[%clk 0:02:19.9]} 15. Qc2 {[%clk 0:02:02.7]}
15... Ba6 {[%clk 0:02:08.5]} 16. Bxa6 {[%clk 0:01:54.1]} 16... Nxa6 {[%clk
0:02:09.4]} 17. Bf4 {[%clk 0:01:50]} 17... Re8 {[%clk 0:02:05]} 18. Bxe5 {[%clk
0:01:19.4]} 18... Bxe5 {[%clk 0:02:05.9]} 19. Nc6 {[%clk 0:01:18.2]} 19... Qd6
{[%clk 0:02:05.8]} 20. Nxe5 {[%clk 0:01:13]} 20... Rxe5 {[%clk 0:02:06.7]} 21.
Rxe5 {[%clk 0:01:00.7]} 21... Qxe5 {[%clk 0:02:07.6]} 22. Rd1 {[%clk 0:00:59.6]}
22... Nc7 {[%clk 0:01:40]} 23. Qe2 {[%clk 0:00:50.1]} 23... Re8 {[%clk
0:01:33.5]} 24. Qxe5 {[%clk 0:00:45.6]} 24... Rxe5 {[%clk 0:01:34.4]} 25. Kf1
{[%clk 0:00:45.3]} 25... Kf8 {[%clk 0:01:13.6]} 26. Ne2 {[%clk 0:00:36.2]} 26...
Ke7 {[%clk 0:01:13.6]} 27. Nd4 {[%clk 0:00:35]} 27... Kd6 {[%clk 0:01:08.6]} 28.
f3 {[%clk 0:00:20.2]} 28... Kc5 {[%clk 0:01:06.9]} 29. Kf2 {[%clk 0:00:19.8]}
29... Nb5 {[%clk 0:00:47.9]} 30. Nb3+ {[%clk 0:00:18.4]} 30... Kc6 {[%clk
0:00:45.9]} 31. a4 {[%clk 0:00:16.6]} 31... Nd6 {[%clk 0:00:39.4]} 32. Nd4+
{[%clk 0:00:16.2]} 32... Kc5 {[%clk 0:00:38.5]} 33. b3 {[%clk 0:00:15.1]} 33...
a6 {[%clk 0:00:35.2]} 34. Ne2 {[%clk 0:00:10.9]} 34... h5 {[%clk 0:00:26.7]} 35.
Nf4 {[%clk 0:00:08.9]} 35... Kc6 {[%clk 0:00:18.5]} 36. Nd3 {[%clk 0:00:09]}
36... Rf5 {[%clk 0:00:17]} 37. Nb4+ {[%clk 0:00:08.9]} 37... Kb7 {[%clk
0:00:15.3]} 38. c4 {[%clk 0:00:08.7]} 38... Ne4+ {[%clk 0:00:12]} 39. Ke3 {[%clk
0:00:08.1]} 39... Nc5 {[%clk 0:00:11.5]} 40. Nxd5 {[%clk 0:00:06.8]} 40... Nxb3
{[%clk 0:00:09.7]} 41. Rb1 {[%clk 0:00:06.7]} 41... Na5 {[%clk 0:00:08.7]} 42.
Kd4 {[%clk 0:00:06]} 42... Nc6+ {[%clk 0:00:08]} 43. Ke4 {[%clk 0:00:05.4]}
43... b5 {[%clk 0:00:07.9]} 44. axb5 {[%clk 0:00:05]} 44... Re5+ {[%clk
0:00:08.3]} 45. Kd3 {[%clk 0:00:04.7]} 45... axb5 {[%clk 0:00:08.5]} 46. Rxb5+
{[%clk 0:00:05.1]} 46... Ka6 {[%clk 0:00:07.6]} 47. f4 {[%clk 0:00:05.3]} 47...
Rf5 {[%clk 0:00:03.8]} 48. Rb6+ {[%clk 0:00:04.8]} 48... Ka5 {[%clk 0:00:04.2]}
49. Rxc6 {[%clk 0:00:05.1]} 49... g5 {[%clk 0:00:04.6]} 50. fxg5 {[%clk
0:00:04.6]} 50... Rxg5 {[%clk 0:00:05.5]} 51. g3 {[%clk 0:00:04.8]} 51... h4
{[%clk 0:00:05.4]} 52. gxh4 {[%clk 0:00:04.2]} 52... Rh5 {[%clk 0:00:05.7]} 53.
Rf6 {[%clk 0:00:04.2]} 53... Rxh4 {[%clk 0:00:05.8]} 54. Ne3 {[%clk 0:00:04.2]}
54... Rxh2 {[%clk 0:00:05.4]} 55. Rxf7 {[%clk 0:00:04.4]} 55... Rh6 {[%clk
0:00:04.9]} 56. Rb7 {[%clk 0:00:03.9]} 56... Rd6+ {[%clk 0:00:05.1]} 57. Nd5
{[%clk 0:00:03.4]} 57... Ka6 {[%clk 0:00:06]} 58. Rb8 {[%clk 0:00:03.5]} 58...
Rd7 {[%clk 0:00:05.5]} 59. Rb3 {[%clk 0:00:03.1]} 59... Rh7 {[%clk 0:00:04.5]}
60. Kd4 {[%clk 0:00:03.1]} 60... Rh6 {[%clk 0:00:02.8]} 61. Kc5 {[%clk
0:00:02.7]} 61... Ka7 {[%clk 0:00:03.3]} 62. Rb4 {[%clk 0:00:02.1]} 62... Rg6
{[%clk 0:00:03.7]} 63. Kb5 {[%clk 0:00:01.4]} 63... Ra6 {[%clk 0:00:01.9]} 0-1

[Event "*** Titled Tuesday Blitz"]
[Site "Chess.com"]
[Date "2020.04.14"]
[Round "5"]
[White "FeketeBarika"]
[Black "Alkhoori90"]
[Result "0-1"]
[WhiteElo "2289"]
[BlackElo "2071"]
[TimeControl "180+1"]
[EndTime "10:52:27 PDT"]
[Termination "Alkhoori90 won by resignation"]

1. Nf3 {[%clk 0:03:00.9]} 1... c5 {[%clk 0:03:00.1]} 2. g3 {[%clk 0:03:01.8]}
2... Nc6 {[%clk 0:03:00.4]} 3. Bg2 {[%clk 0:03:02.7]} 3... g6 {[%clk 0:03:01.3]}
4. O-O {[%clk 0:03:02.8]} 4... Bg7 {[%clk 0:03:01.8]} 5. c4 {[%clk 0:03:03.3]}
5... e5 {[%clk 0:03:02.1]} 6. Nc3 {[%clk 0:03:03.5]} 6... Nge7 {[%clk
0:03:02.6]} 7. d3 {[%clk 0:03:04]} 7... O-O {[%clk 0:03:03]} 8. Rb1 {[%clk
0:03:04.2]} 8... d6 {[%clk 0:03:03.1]} 9. a3 {[%clk 0:03:04.6]} 9... a5 {[%clk
0:03:03.6]} 10. Ne1 {[%clk 0:03:04]} 10... Be6 {[%clk 0:03:03.7]} 11. Nc2 {[%clk
0:03:03.7]} 11... d5 {[%clk 0:03:04.2]} 12. cxd5 {[%clk 0:03:03.2]} 12... Nxd5
{[%clk 0:03:05.1]} 13. Bd2 {[%clk 0:03:02]} 13... h5 {[%clk 0:02:50.1]} 14. h4
{[%clk 0:02:58.7]} 14... Qd7 {[%clk 0:02:44.7]} 15. Ne3 {[%clk 0:02:48.9]} 15...
Nc7 {[%clk 0:02:30.7]} 16. Na4 {[%clk 0:02:34.7]} 16... Qe7 {[%clk 0:02:17.6]}
17. Rc1 {[%clk 0:02:25.3]} 17... Na6 {[%clk 0:02:08.3]} 18. Nd5 {[%clk
0:02:10.4]} 18... Qd8 {[%clk 0:02:02.6]} 19. Ndb6 {[%clk 0:02:04.7]} 19... Rb8
{[%clk 0:01:57]} 20. Bc3 {[%clk 0:01:54.2]} 20... Nd4 {[%clk 0:01:52.4]} 21.
Bxa5 {[%clk 0:01:43.9]} 21... Bb3 {[%clk 0:01:47.6]} 22. Qd2 {[%clk 0:01:34.9]}
22... Bxa4 {[%clk 0:00:50.1]} 23. Nxa4 {[%clk 0:01:35.8]} 23... b6 {[%clk
0:00:41.8]} 24. Bc3 {[%clk 0:00:48.3]} 24... Nb3 {[%clk 0:00:39.8]} 25. Qe3
{[%clk 0:00:48.3]} 25... Nxc1 {[%clk 0:00:39.3]} 26. Rxc1 {[%clk 0:00:49.2]}
26... Qd7 {[%clk 0:00:37.7]} 27. b3 {[%clk 0:00:48.3]} 27... Rfc8 {[%clk
0:00:34.7]} 28. Nb2 {[%clk 0:00:47]} 28... b5 {[%clk 0:00:33.1]} 29. Qg5 {[%clk
0:00:39.8]} 29... Re8 {[%clk 0:00:28]} 30. b4 {[%clk 0:00:37.8]} 30... cxb4
{[%clk 0:00:26.3]} 31. axb4 {[%clk 0:00:38.7]} 31... Rbc8 {[%clk 0:00:26.9]} 32.
Nd1 {[%clk 0:00:37.9]} 32... Kh7 {[%clk 0:00:24.4]} 33. Ne3 {[%clk 0:00:34]}
33... Nxb4 {[%clk 0:00:24.6]} 34. Be4 {[%clk 0:00:29.6]} 34... Na2 {[%clk
0:00:23.3]} 35. Bd2 {[%clk 0:00:15.7]} 35... Nxc1 {[%clk 0:00:20.4]} 36. Qxh5+
{[%clk 0:00:14]} 36... Kg8 {[%clk 0:00:20.7]} 37. Qf3 {[%clk 0:00:13.6]} 37...
Nb3 {[%clk 0:00:18.5]} 38. Bb4 {[%clk 0:00:10.2]} 38... Nd4 {[%clk 0:00:18]} 39.
Qg2 {[%clk 0:00:09.2]} 39... Nxe2+ {[%clk 0:00:17.9]} 40. Kh2 {[%clk 0:00:09.5]}
40... Nd4 {[%clk 0:00:16.6]} 41. Nd5 {[%clk 0:00:08.2]} 41... Red8 {[%clk
0:00:12.2]} 42. Ne7+ {[%clk 0:00:07.1]} 42... Kh7 {[%clk 0:00:11.8]} 43. Nxc8
{[%clk 0:00:07.6]} 43... Rxc8 {[%clk 0:00:12.7]} 44. Bd2 {[%clk 0:00:07.5]}
44... Rc2 {[%clk 0:00:11.7]} 45. Be3 {[%clk 0:00:07.4]} 45... f5 {[%clk
0:00:10.1]} 46. Bf3 {[%clk 0:00:06.9]} 46... Nxf3+ {[%clk 0:00:10.3]} 47. Qxf3
{[%clk 0:00:07.8]} 47... Qxd3 {[%clk 0:00:10.6]} 48. h5 {[%clk 0:00:07.4]} 48...
Qe4 {[%clk 0:00:10.3]} 49. hxg6+ {[%clk 0:00:07.2]} 49... Kxg6 {[%clk
0:00:11.2]} 50. Qd1 {[%clk 0:00:06.1]} 50... Rc6 {[%clk 0:00:07.9]} 51. Qd7
{[%clk 0:00:05.1]} 51... Qc4 {[%clk 0:00:06.8]} 52. Qe8+ {[%clk 0:00:04.1]}
52... Kh7 {[%clk 0:00:07.4]} 53. Qh5+ {[%clk 0:00:03.9]} 53... Kg8 {[%clk
0:00:07.3]} 54. Qe8+ {[%clk 0:00:03.6]} 54... Bf8 {[%clk 0:00:06.8]} 55. Qxe5
{[%clk 0:00:03.5]} 55... Qf7 {[%clk 0:00:06.9]} 56. Qf4 {[%clk 0:00:02.8]} 56...
Qh5+ {[%clk 0:00:07.2]} 57. Kg2 {[%clk 0:00:02.4]} 57... Qg4 {[%clk 0:00:08.1]}
58. Qg5+ {[%clk 0:00:03]} 58... Qxg5 {[%clk 0:00:08.2]} 59. Bxg5 {[%clk
0:00:03.9]} 59... b4 {[%clk 0:00:09.1]} 60. Be3 {[%clk 0:00:03.4]} 60... b3
{[%clk 0:00:09.6]} 61. Bd4 {[%clk 0:00:03.5]} 61... Bg7 {[%clk 0:00:10.2]} 62.
Bb2 {[%clk 0:00:03.9]} 62... Bxb2 {[%clk 0:00:10]} 0-1